[Event "NJSK 2026 Meisjes A"]
[Site "Helmond, Netherlands"]
[Date "2026.04.27"]
[Round "3.2"]
[White "Feng, Elysia"]
[Black "Damen, Josephine"]
[Result "0-1"]
[TimeControl "90min/40moves + 30min + 30sec/move"]
[WhiteTitle "-"]
[BlackTitle "-"]
[WhiteFideId "1074334"]
[BlackFideId "1074369"]
[WhiteElo "1912"]
[BlackElo "1982"]

1. e4 {[%clk 01:30:57]} {[%emt 00:00:02]} e5 {[%clk 01:30:56]} {[%emt
00:00:05]} 2. Nf3 {[%clk 01:31:23]} {[%emt 00:00:04]} Nc6 {[%clk 01:31:21]}
{[%emt 00:00:04]} 3. Bb5 {[%clk 01:31:48]} {[%emt 00:00:06]} a6 {[%clk
01:31:47]} {[%emt 00:00:05]} 4. Ba4 {[%clk 01:32:12]} {[%emt 00:00:05]} Nf6
{[%clk 01:32:08]} {[%emt 00:00:08]} 5. O-O {[%clk 01:32:34]} {[%emt 00:00:08]}
Be7 {[%clk 01:32:29]} {[%emt 00:00:09]} 6. Re1 {[%clk 01:32:55]} {[%emt
00:00:09]} b5 {[%clk 01:32:54]} {[%emt 00:00:05]} 7. Bb3 {[%clk 01:33:19]}
{[%emt 00:00:06]} d6 {[%clk 01:33:20]} {[%emt 00:00:05]} 8. c3 {[%clk
01:32:59]} {[%emt 00:00:50]} O-O {[%clk 01:33:44]} {[%emt 00:00:06]} 9. d4
{[%clk 01:33:02]} {[%emt 00:00:28]} Bg4 {[%clk 01:34:07]} {[%emt 00:00:07]} 10.
Be3 {[%clk 01:30:27]} {[%emt 00:03:04]} exd4 {[%clk 01:33:51]} {[%emt
00:00:47]} 11. cxd4 {[%clk 01:30:46]} {[%emt 00:00:11]} Na5 {[%clk 01:33:58]}
{[%emt 00:00:23]} 12. Bc2 {[%clk 01:31:08]} {[%emt 00:00:06]} c5 {[%clk
01:34:12]} {[%emt 00:00:18]} 13. Nbd2 {[%clk 01:25:42]} {[%emt 00:05:55]} Nc6
{[%clk 01:27:09]} {[%emt 00:07:32]} 14. Nb3 {[%clk 01:13:51]} {[%emt 00:12:22]}
Nd7 {[%clk 01:14:53]} {[%emt 00:12:46]} 15. h3 {[%clk 01:05:01]} {[%emt
00:09:21]} Bh5 {[%clk 00:59:38]} {[%emt 00:15:44]} 16. Rc1 {[%clk 00:57:46]}
{[%emt 00:07:45]} c4 {[%clk 00:52:58]} {[%emt 00:07:09]} 17. Nbd2 {[%clk
00:56:48]} {[%emt 00:01:28]} Bg6 {[%clk 00:47:28]} {[%emt 00:06:01]} 18. g4
{[%clk 00:47:28]} {[%emt 00:09:50]} d5 {[%clk 00:44:54]} {[%emt 00:03:04]} 19.
a3 {[%clk 00:40:45]} {[%emt 00:07:13]} dxe4 {[%clk 00:31:42]} {[%emt 00:13:43]}
20. Nxe4 {[%clk 00:41:02]} {[%emt 00:00:12]} Nf6 {[%clk 00:30:28]} {[%emt
00:01:44]} 21. Ng3 {[%clk 00:38:12]} {[%emt 00:03:19]} Bxc2 {[%clk 00:24:54]}
{[%emt 00:06:06]} 22. Qxc2 {[%clk 00:37:53]} {[%emt 00:00:48]} Qd5 {[%clk
00:24:01]} {[%emt 00:01:23]} 23. Qe2 {[%clk 00:31:15]} {[%emt 00:07:08]} Bd6
{[%clk 00:20:04]} {[%emt 00:04:26]} 24. Nf5 {[%clk 00:27:35]} {[%emt 00:04:10]}
Ne7 {[%clk 00:16:13]} {[%emt 00:04:21]} 25. N3h4 {[%clk 00:22:39]} {[%emt
00:05:26]} Nxf5 {[%clk 00:12:33]} {[%emt 00:04:10]} 26. Nxf5 {[%clk 00:22:52]}
{[%emt 00:00:16]} Rfe8 {[%clk 00:12:38]} {[%emt 00:00:26]} 27. Rcd1 {[%clk
00:12:22]} {[%emt 00:11:01]} Bc7 {[%clk 00:11:29]} {[%emt 00:01:38]} 28. Qc2
{[%clk 00:06:55]} {[%emt 00:05:57]} Qf3 {[%clk 00:09:59]} {[%emt 00:02:00]} 29.
g5 {[%clk 00:06:34]} {[%emt 00:00:50]} Ne4 {[%clk 00:08:34]} {[%emt 00:01:56]}
30. d5 {[%clk 00:06:00]} {[%emt 00:01:04]} Qxf5 {[%clk 00:08:06]} {[%emt
00:00:58]} 31. Kg2 {[%clk 00:04:33]} {[%emt 00:01:57]} Nd6 {[%clk 00:06:40]}
{[%emt 00:01:56]} 32. Qc3 {[%clk 00:04:40]} {[%emt 00:00:23]} Qe5 {[%clk
00:04:56]} {[%emt 00:02:13]} 33. Qc1 {[%clk 00:04:34]} {[%emt 00:00:37]} Nf5
{[%clk 00:04:43]} {[%emt 00:00:43]} 34. Rh1 {[%clk 00:02:27]} {[%emt 00:02:37]}
Nxe3+ {[%clk 00:02:23]} {[%emt 00:02:50]} 35. Qxe3 {[%clk 00:02:50]} {[%emt
00:00:07]} Qxe3 {[%clk 00:02:27]} {[%emt 00:00:26]} 36. fxe3 {[%clk 00:03:14]}
{[%emt 00:00:06]} Rad8 {[%clk 00:02:36]} {[%emt 00:00:21]} 37. Kf3 {[%clk
00:03:22]} {[%emt 00:00:23]} Re5 {[%clk 00:02:03]} {[%emt 00:01:02]} 38. e4
{[%clk 00:03:19]} {[%emt 00:00:33]} Rxg5 {[%clk 00:02:09]} {[%emt 00:00:23]} 39.
Rd2 {[%clk 00:03:38]} {[%emt 00:00:09]} Bd6 {[%clk 00:01:30]} {[%emt 00:01:11]}
40. Ke3 {[%clk 00:03:20]} {[%emt 00:00:48]} Be5 {[%clk 00:00:57]} {[%emt
00:01:03]} 41. Kf2 {[%clk 00:01:15]} {[%emt 00:02:36]} Rg3 {[%clk 00:30:03]}
{[%emt 00:01:23]} 0-1

[Event "NJSK 2026 Meisjes A"]
[Site "Helmond, Netherlands"]
[Date "2026.04.27"]
[Round "3.3"]
[White "Westerhof, Fleur"]
[Black "Gergin, Isafara"]
[Result "0-1"]
[TimeControl "90min/40moves + 30min + 30sec/move"]
[WhiteTitle "-"]
[BlackTitle "-"]
[WhiteFideId "1080369"]
[BlackFideId "1082167"]
[WhiteElo "1968"]
[BlackElo "1915"]

1. e4 {[%clk 01:30:57]} {[%emt 00:00:02]} c5 {[%clk 01:30:52]} {[%emt
00:00:10]} 2. Nf3 {[%clk 01:31:19]} {[%emt 00:00:08]} Nc6 {[%clk 01:31:12]}
{[%emt 00:00:10]} 3. d4 {[%clk 01:31:40]} {[%emt 00:00:09]} cxd4 {[%clk
01:31:37]} {[%emt 00:00:05]} 4. Nxd4 {[%clk 01:32:01]} {[%emt 00:00:08]} Nf6
{[%clk 01:31:31]} {[%emt 00:00:36]} 5. Nc3 {[%clk 01:32:22]} {[%emt 00:00:08]}
e5 {[%clk 01:31:55]} {[%emt 00:00:07]} 6. Ndb5 {[%clk 01:32:28]} {[%emt
00:00:24]} d6 {[%clk 01:32:09]} {[%emt 00:00:16]} 7. Nd5 {[%clk 01:32:22]}
{[%emt 00:00:36]} Nxd5 {[%clk 01:32:31]} {[%emt 00:00:09]} 8. exd5 {[%clk
01:32:44]} {[%emt 00:00:08]} Ne7 {[%clk 01:32:40]} {[%emt 00:00:21]} 9. c4
{[%clk 01:32:12]} {[%emt 00:01:01]} Ng6 {[%clk 01:32:17]} {[%emt 00:00:53]} 10.
Bd3 {[%clk 01:29:25]} {[%emt 00:03:17]} Be7 {[%clk 01:26:13]} {[%emt 00:06:35]}
11. O-O {[%clk 01:27:01]} {[%emt 00:02:52]} a6 {[%clk 01:20:44]} {[%emt
00:06:00]} 12. Nc3 {[%clk 01:25:43]} {[%emt 00:01:49]} f5 {[%clk 01:18:58]}
{[%emt 00:02:15]} 13. Bd2 {[%clk 01:10:00]} {[%emt 00:16:12]} O-O {[%clk
01:11:43]} {[%emt 00:07:46]} 14. b4 {[%clk 01:01:53]} {[%emt 00:08:37]} e4
{[%clk 01:08:06]} {[%emt 00:04:07]} 15. Be2 {[%clk 00:59:48]} {[%emt 00:02:34]}
Ne5 {[%clk 01:00:49]} {[%emt 00:07:47]} 16. Qb3 {[%clk 00:56:39]} {[%emt
00:03:40]} Kh8 {[%clk 00:40:34]} {[%emt 00:20:45]} 17. f4 {[%clk 00:53:20]}
{[%emt 00:03:49]} exf3 {[%clk 00:34:41]} {[%emt 00:06:23]} 18. Bxf3 {[%clk
00:49:48]} {[%emt 00:04:01]} Qb6+ {[%clk 00:28:53]} {[%emt 00:06:19]} 19. Kh1
{[%clk 00:41:18]} {[%emt 00:09:00]} Qd4 {[%clk 00:28:22]} {[%emt 00:01:02]} 20.
Rad1 {[%clk 00:39:04]} {[%emt 00:02:42]} Qxc4 {[%clk 00:23:58]} {[%emt
00:04:55]} 21. Qb1 {[%clk 00:37:42]} {[%emt 00:01:52]} Bd7 {[%clk 00:21:43]}
{[%emt 00:02:45]} 22. Be2 {[%clk 00:35:20]} {[%emt 00:02:52]} Qh4 {[%clk
00:19:13]} {[%emt 00:03:00]} 23. Bf4 {[%clk 00:30:32]} {[%emt 00:05:17]} Rac8
{[%clk 00:17:10]} {[%emt 00:02:33]} 24. Bxe5 {[%clk 00:27:07]} {[%emt
00:03:56]} dxe5 {[%clk 00:17:09]} {[%emt 00:00:31]} 25. d6 {[%clk 00:25:54]}
{[%emt 00:01:43]} Rxc3 {[%clk 00:15:18]} {[%emt 00:02:21]} 26. dxe7 {[%clk
00:26:14]} {[%emt 00:00:11]} Qxe7 {[%clk 00:15:41]} {[%emt 00:00:08]} 27. Qb2
{[%clk 00:26:16]} {[%emt 00:00:27]} Rcc8 {[%clk 00:14:26]} {[%emt 00:01:45]} 28.
Rd5 {[%clk 00:25:05]} {[%emt 00:01:41]} e4 {[%clk 00:12:52]} {[%emt 00:02:04]}
29. Qd4 {[%clk 00:23:19]} {[%emt 00:02:16]} Be6 {[%clk 00:10:12]} {[%emt
00:03:09]} 30. Qe5 {[%clk 00:20:39]} {[%emt 00:03:10]} Qf7 {[%clk 00:10:04]}
{[%emt 00:00:39]} 31. Rd6 {[%clk 00:20:29]} {[%emt 00:00:40]} Bxa2 {[%clk
00:09:09]} {[%emt 00:01:24]} 32. Bg4 {[%clk 00:20:10]} {[%emt 00:00:50]} Qc4
{[%clk 00:06:12]} {[%emt 00:03:27]} 0-1

[Event "NJSK 2026 Meisjes A"]
[Site "Helmond, Netherlands"]
[Date "2026.04.27"]
[Round "3.4"]
[White "Hagen, Carlijn"]
[Black "Kulikova, Polina"]
[Result "0-1"]
[TimeControl "90min/40moves + 30min + 30sec/move"]
[WhiteTitle "-"]
[BlackTitle "-"]
[WhiteFideId "1091190"]
[BlackFideId "1085921"]
[WhiteElo "1861"]
[BlackElo "1766"]

1. e4 {[%clk 01:30:57]} {[%emt 00:00:02]} c6 {[%clk 01:30:59]} {[%emt
00:00:02]} 2. d4 {[%clk 01:31:04]} {[%emt 00:00:24]} d5 {[%clk 01:31:26]}
{[%emt 00:00:02]} 3. exd5 {[%clk 01:31:26]} {[%emt 00:00:09]} cxd5 {[%clk
01:31:54]} {[%emt 00:00:02]} 4. Bd3 {[%clk 01:31:45]} {[%emt 00:00:11]} Nf6
{[%clk 01:32:16]} {[%emt 00:00:08]} 5. c3 {[%clk 01:31:37]} {[%emt 00:00:38]}
Bg4 {[%clk 01:32:30]} {[%emt 00:00:15]} 6. Nf3 {[%clk 01:31:23]} {[%emt
00:00:43]} Nc6 {[%clk 01:32:32]} {[%emt 00:00:30]} 7. h3 {[%clk 01:29:20]}
{[%emt 00:02:32]} Bh5 {[%clk 01:32:24]} {[%emt 00:00:38]} 8. Bf4 {[%clk
01:28:59]} {[%emt 00:00:50]} e6 {[%clk 01:31:57]} {[%emt 00:00:57]} 9. Nbd2
{[%clk 01:28:13]} {[%emt 00:01:15]} Bd6 {[%clk 01:31:55]} {[%emt 00:00:34]} 10.
Bxd6 {[%clk 01:28:05]} {[%emt 00:00:38]} Qxd6 {[%clk 01:32:22]} {[%emt
00:00:03]} 11. O-O {[%clk 01:27:29]} {[%emt 00:01:05]} O-O {[%clk 01:32:23]}
{[%emt 00:00:30]} 12. Re1 {[%clk 01:25:35]} {[%emt 00:02:24]} Rfc8 {[%clk
01:26:33]} {[%emt 00:06:20]} 13. Nf1 {[%clk 01:12:48]} {[%emt 00:13:16]} a6
{[%clk 01:24:08]} {[%emt 00:02:57]} 14. g4 {[%clk 01:09:59]} {[%emt 00:03:17]}
Bg6 {[%clk 01:22:30]} {[%emt 00:02:09]} 15. Ng3 {[%clk 01:08:12]} {[%emt
00:02:17]} b5 {[%clk 01:14:14]} {[%emt 00:08:46]} 16. Ne5 {[%clk 01:03:16]}
{[%emt 00:05:26]} Na5 {[%clk 00:51:39]} {[%emt 00:23:05]} 17. h4 {[%clk
00:49:29]} {[%emt 00:14:17]} Bxd3 {[%clk 00:45:34]} {[%emt 00:06:36]} 18. Qxd3
{[%clk 00:49:36]} {[%emt 00:00:22]} Nd7 {[%clk 00:40:40]} {[%emt 00:05:25]} 19.
g5 {[%clk 00:38:39]} {[%emt 00:11:27]} Nxe5 {[%clk 00:40:17]} {[%emt 00:00:53]}
20. dxe5 {[%clk 00:39:00]} {[%emt 00:00:08]} Qc7 {[%clk 00:33:07]} {[%emt
00:07:39]} 21. f4 {[%clk 00:29:38]} {[%emt 00:09:54]} Qb6+ {[%clk 00:28:56]}
{[%emt 00:04:41]} 22. Kh1 {[%clk 00:29:38]} {[%emt 00:00:29]} Rc4 {[%clk
00:24:47]} {[%emt 00:04:39]} 23. Rf1 {[%clk 00:25:45]} {[%emt 00:04:23]} b4
{[%clk 00:18:09]} {[%emt 00:07:08]} 24. h5 {[%clk 00:19:41]} {[%emt 00:06:34]}
Rac8 {[%clk 00:12:40]} {[%emt 00:06:00]} 25. g6 {[%clk 00:15:17]} {[%emt
00:04:54]} fxg6 {[%clk 00:10:55]} {[%emt 00:02:16]} 26. hxg6 {[%clk 00:15:09]}
{[%emt 00:00:36]} h6 {[%clk 00:11:11]} {[%emt 00:00:15]} 27. f5 {[%clk
00:12:27]} {[%emt 00:03:13]} bxc3 {[%clk 00:10:38]} {[%emt 00:01:03]} 28. f6
{[%clk 00:08:40]} {[%emt 00:04:16]} Rh4+ {[%clk 00:06:14]} {[%emt 00:04:53]} 29.
Kg2 {[%clk 00:08:53]} {[%emt 00:00:18]} Qxb2+ {[%clk 00:05:47]} {[%emt
00:00:57]} 30. Rf2 {[%clk 00:04:31]} {[%emt 00:04:52]} Rh2+ {[%clk 00:04:14]}
{[%emt 00:02:03]} 31. Kxh2 {[%clk 00:04:54]} {[%emt 00:00:06]} Qxf2+ {[%clk
00:04:42]} {[%emt 00:00:02]} 32. Kh3 {[%clk 00:05:08]} {[%emt 00:00:16]} Qa7
{[%clk 00:01:03]} {[%emt 00:04:09]} 33. Rc1 {[%clk 00:03:40]} {[%emt 00:01:58]}
d4 {[%clk 00:01:09]} {[%emt 00:00:24]} 34. Nh5 {[%clk 00:03:11]} {[%emt
00:01:00]} Nc4 {[%clk 00:00:48]} {[%emt 00:00:51]} 35. Qe4 {[%clk 00:01:39]}
{[%emt 00:02:01]} Qc7 {[%clk 00:00:39]} {[%emt 00:00:40]} 36. f7+ {[%clk
00:00:49]} {[%emt 00:01:20]} Kf8 {[%clk 00:01:02]} {[%emt 00:00:07]} 37. Nf4
{[%clk 00:01:02]} {[%emt 00:00:17]} Qd7 {[%clk 00:00:40]} {[%emt 00:00:53]} 38.
Qxd4 {[%clk 00:01:07]} {[%emt 00:00:25]} Qxd4 {[%clk 00:00:37]} {[%emt
00:00:32]} 39. Nxe6+ {[%clk 00:01:31]} {[%emt 00:00:06]} Ke7 {[%clk 00:00:56]}
{[%emt 00:00:11]} 40. Nxd4 {[%clk 00:01:57]} {[%emt 00:00:04]} Nxe5 {[%clk
00:00:55]} {[%emt 00:00:32]} 41. Rf1 {[%clk 00:01:01]} {[%emt 00:01:24]} Nxg6
{[%clk 00:27:00]} {[%emt 00:04:24]} 42. Rg1 {[%clk 00:28:53]} {[%emt 00:02:39]}
Kxf7 {[%clk 00:26:13]} {[%emt 00:01:17]} 0-1

[Event "NJSK 2026 Meisjes A"]
[Site "Helmond, Netherlands"]
[Date "2026.04.28"]
[Round "4.1"]
[White "Yildirim, Azra"]
[Black "Kulikova, Polina"]
[Result "0-1"]
[TimeControl "90min/40moves + 30min + 30sec/move"]
[WhiteTitle "-"]
[BlackTitle "-"]
[WhiteFideId "1085670"]
[BlackFideId "1085921"]
[WhiteElo "1560"]
[BlackElo "1766"]

1. e4 {[%clk 01:30:58]} {[%emt 00:00:02]} c6 {[%clk 01:30:59]} {[%emt
00:00:02]} 2. d4 {[%clk 01:31:22]} {[%emt 00:00:04]} d5 {[%clk 01:31:25]}
{[%emt 00:00:03]} 3. exd5 {[%clk 01:31:41]} {[%emt 00:00:11]} cxd5 {[%clk
01:31:53]} {[%emt 00:00:02]} 4. Bd3 {[%clk 01:32:03]} {[%emt 00:00:08]} Nf6
{[%clk 01:32:18]} {[%emt 00:00:05]} 5. c3 {[%clk 01:32:25]} {[%emt 00:00:08]}
Bg4 {[%clk 01:32:43]} {[%emt 00:00:05]} 6. Ne2 {[%clk 01:32:35]} {[%emt
00:00:21]} e6 {[%clk 01:32:20]} {[%emt 00:00:53]} 7. h3 {[%clk 01:31:51]}
{[%emt 00:01:14]} Bh5 {[%clk 01:32:38]} {[%emt 00:00:11]} 8. Qb3 {[%clk
01:30:44]} {[%emt 00:01:37]} Qd7 {[%clk 01:31:23]} {[%emt 00:01:44]} 9. Bf4
{[%clk 01:29:44]} {[%emt 00:01:32]} Nc6 {[%clk 01:31:24]} {[%emt 00:00:29]} 10.
Nd2 {[%clk 01:29:19]} {[%emt 00:00:54]} Be7 {[%clk 01:29:22]} {[%emt 00:02:32]}
11. g4 {[%clk 01:22:34]} {[%emt 00:07:16]} Bg6 {[%clk 01:28:57]} {[%emt
00:00:54]} 12. Bxg6 {[%clk 01:22:45]} {[%emt 00:00:19]} hxg6 {[%clk 01:28:41]}
{[%emt 00:00:46]} 13. Ng3 {[%clk 01:20:27]} {[%emt 00:02:48]} Rc8 {[%clk
01:15:44]} {[%emt 00:13:27]} 14. Nf3 {[%clk 01:12:36]} {[%emt 00:08:20]} Na5
{[%clk 01:05:10]} {[%emt 00:11:04]} 15. Qc2 {[%clk 01:08:31]} {[%emt 00:04:36]}
Qb5 {[%clk 00:36:20]} {[%emt 00:29:20]} 16. Qe2 {[%clk 00:57:43]} {[%emt
00:11:18]} Qxe2+ {[%clk 00:31:48]} {[%emt 00:05:02]} 17. Kxe2 {[%clk 00:58:02]}
{[%emt 00:00:11]} Nc4 {[%clk 00:31:11]} {[%emt 00:01:06]} 18. Rab1 {[%clk
00:55:35]} {[%emt 00:02:58]} Bd6 {[%clk 00:21:16]} {[%emt 00:10:26]} 19. Bxd6
{[%clk 00:48:22]} {[%emt 00:07:42]} Nxd6 {[%clk 00:21:43]} {[%emt 00:00:03]} 20.
Ne5 {[%clk 00:47:55]} {[%emt 00:00:57]} g5 {[%clk 00:15:59]} {[%emt 00:06:16]}
21. Nf3 {[%clk 00:46:21]} {[%emt 00:02:04]} Nde4 {[%clk 00:15:03]} {[%emt
00:01:26]} 22. Nxe4 {[%clk 00:46:29]} {[%emt 00:00:22]} Nxe4 {[%clk 00:15:29]}
{[%emt 00:00:04]} 23. h4 {[%clk 00:45:49]} {[%emt 00:01:10]} gxh4 {[%clk
00:15:34]} {[%emt 00:00:24]} 24. Rxh4 {[%clk 00:45:46]} {[%emt 00:00:33]} Rxh4
{[%clk 00:15:49]} {[%emt 00:00:15]} 25. Nxh4 {[%clk 00:46:13]} {[%emt
00:00:03]} g5 {[%clk 00:10:23]} {[%emt 00:05:56]} 26. Nf3 {[%clk 00:41:04]}
{[%emt 00:05:40]} Rxc3 {[%clk 00:09:18]} {[%emt 00:01:35]} 27. bxc3 {[%clk
00:39:42]} {[%emt 00:01:52]} Nxc3+ {[%clk 00:09:42]} {[%emt 00:00:06]} 28. Kd3
{[%clk 00:39:57]} {[%emt 00:00:15]} Nxb1 {[%clk 00:10:06]} {[%emt 00:00:06]} 29.
Nxg5 {[%clk 00:40:10]} {[%emt 00:00:16]} Na3 {[%clk 00:09:48]} {[%emt
00:00:49]} 30. f4 {[%clk 00:38:51]} {[%emt 00:01:49]} Nb5 {[%clk 00:09:42]}
{[%emt 00:00:35]} 31. Nf3 {[%clk 00:36:59]} {[%emt 00:02:23]} Ke7 {[%clk
00:08:38]} {[%emt 00:01:34]} 32. Nd2 {[%clk 00:32:07]} {[%emt 00:05:21]} Nd6
{[%clk 00:07:49]} {[%emt 00:01:20]} 33. Nb3 {[%clk 00:31:08]} {[%emt 00:01:29]}
b6 {[%clk 00:07:44]} {[%emt 00:00:35]} 34. Nd2 {[%clk 00:28:41]} {[%emt
00:02:57]} f6 {[%clk 00:05:37]} {[%emt 00:02:37]} 35. Nf3 {[%clk 00:24:36]}
{[%emt 00:04:34]} Ne4 {[%clk 00:03:23]} {[%emt 00:02:44]} 36. g5 {[%clk
00:24:35]} {[%emt 00:00:32]} Kf7 {[%clk 00:03:19]} {[%emt 00:00:33]} 37. gxf6
{[%clk 00:24:31]} {[%emt 00:00:35]} Kxf6 {[%clk 00:03:31]} {[%emt 00:00:18]} 38.
Ne5 {[%clk 00:23:07]} {[%emt 00:01:55]} Nd6 {[%clk 00:03:17]} {[%emt 00:00:43]}
39. Nc6 {[%clk 00:19:04]} {[%emt 00:04:33]} a5 {[%clk 00:02:04]} {[%emt
00:01:43]} 40. Ne5 {[%clk 00:18:54]} {[%emt 00:00:40]} Kf5 {[%clk 00:02:08]}
{[%emt 00:00:26]} 41. Nd7 {[%clk 00:18:48]} {[%emt 00:00:36]} Nc4 {[%clk
00:01:44]} {[%emt 00:00:53]} 42. Nf8 {[%clk 00:18:29]} {[%emt 00:00:51]} b5
{[%clk 00:28:03]} {[%emt 00:04:10]} 43. Kc3 {[%clk 00:45:50]} {[%emt 00:03:08]}
b4+ {[%clk 00:09:33]} {[%emt 00:19:01]} 44. Kb3 {[%clk 00:41:24]} {[%emt
00:04:56]} Kxf4 {[%clk 00:04:57]} {[%emt 00:05:06]} 45. Nxe6+ {[%clk 00:41:07]}
{[%emt 00:00:47]} Ke3 {[%clk 00:04:51]} {[%emt 00:00:35]} 46. Ka4 {[%clk
00:39:27]} {[%emt 00:02:10]} Kd3 {[%clk 00:04:31]} {[%emt 00:00:50]} 47. Kb3
{[%clk 00:37:44]} {[%emt 00:02:12]} Nb6 {[%clk 00:02:32]} {[%emt 00:02:29]} 48.
Kb2 {[%clk 00:21:36]} {[%emt 00:16:38]} a4 {[%clk 00:02:10]} {[%emt 00:00:53]}
49. Kb1 {[%clk 00:18:23]} {[%emt 00:03:43]} Kc3 {[%clk 00:02:27]} {[%emt
00:00:14]} 50. Kc1 {[%clk 00:18:38]} {[%emt 00:00:13]} b3 {[%clk 00:02:37]}
{[%emt 00:00:21]} 51. axb3 {[%clk 00:19:01]} {[%emt 00:00:08]} axb3 {[%clk
00:02:41]} {[%emt 00:00:25]} 52. Nc5 {[%clk 00:19:07]} {[%emt 00:00:24]} Nc4
{[%clk 00:02:52]} {[%emt 00:00:19]} 53. Nxb3 {[%clk 00:11:51]} {[%emt
00:07:46]} Kxb3 {[%clk 00:03:18]} {[%emt 00:00:03]} 54. Kd1 {[%clk 00:12:08]}
{[%emt 00:00:13]} Kc3 {[%clk 00:03:40]} {[%emt 00:00:08]} 0-1